[Event "Catalan University-ch 2024"]
[Site "Barcelona"]
[Date "2024.02.24"]
[Round "4.9"]
[White "Catala Ulied, Guillem"]
[Black "Masalias Mira, Marc"]
[Result "0-1"]
[ECO "B38"]
[WhiteElo "1892"]
[BlackElo "1826"]
[Annotator "NA RC"]
[PlyCount "70"]
[EventDate "2024.02.24"]
[EventCountry "ESP"]
[SourceTitle "playchess.com"]
[Source "ChessBase"]
[SourceQuality "1"]
[TimeControl "600+2"]

1. e4 {[%emt 0:00:01]} c5 {[%emt 0:00:00]} 2. Nf3 {[%emt 0:00:03]} Nc6 {[%emt 0:00:01]} 3. c4 {[%emt 0:00:04]} d6 {[%emt 0:00:09]} 4. d4 {[%emt 0:00:02]} cxd4 {[%emt 0:00:02]} 5. Nxd4 {[%emt 0:00:02]} Nf6 {[%emt 0:00:05]} 6. Nc3 {[%emt 0:00:02]} g6 {[%emt 0:00:03]} 7. Be2 {[%emt 0:00:05]} Bg7 {[%emt 0:00:06]} 8. Be3 {[%emt 0:00:14]} O-O {[%emt 0:00:10]} 9. f3 {[%emt 0:00:03]} Qb6 {[%emt 0:00:42]} 10. Na4 {[%emt 0:01:30]} Qa5+ {[%emt 0:00:24]} 11. Nc3 {[%emt 0:00:42]} Nxd4 {[%emt 0:01:19]} 12. Bxd4 {[%emt 0:00:03]} Be6 {[%emt 0:00:35]} 13. O-O {[%emt 0:00:28]} Rac8 {[%emt 0:00:11]} 14. b3 {[%emt 0:00:22]} a6 {[%emt 0:01:30]} 15. Rc1 {[%emt 0:00:33]} Nd7 {[%emt 0:00:14]} 16. Bxg7 {[%emt 0:00:11]} Kxg7 {[%emt 0:00:01]} 17. f4 {[%emt 0:00:10]} Qc5+ {[%emt 0:00:30]} 18. Kh1 {[%emt 0:00:25]} Rfd8 {[%emt 0:00:21]} 19. Qd3 {[%emt 0:01:23]} f5 {[%emt 0:00:37]} 20. Na4 {[%emt 0:00:36]} Qc7 {[%emt 0:01:02]} 21. Bf3 {[%emt 0:00:36]} b5 {[%emt 0:00:28]} 22. Qc3+ {[%emt 0:00:24]} Kg8 {[%emt 0:00:13]} 23. cxb5 {[%emt 0:00:06]} Qb8 {[%emt 0:00:34]} 24. Qe3 {[%emt 0:00:52]} axb5 {[%emt 0:00:10]} 25. Nc3 {[%emt 0:00:27]} fxe4 {[%emt 0:00:43]} 26. Bxe4 {[%emt 0:00:24]} Bf7 {[%emt 0:00:20]} 27. f5 {[%emt 0:00:08]} Ne5 {[%emt 0:00:05]} 28. Nd5 {[%emt 0:00:20]} Rxc1 {[%emt 0:00:14]} 29. Rxc1 {[%emt 0:00:05]} Bxd5 {[%emt 0:00:05]} 30. Bxd5+ {[%emt 0:00:02]} Kg7 {[%emt 0:00:01]} 31. fxg6 {[%emt 0:00:12]} hxg6 {[%emt 0:00:01]} 32. Qg5 {[%emt 0:00:10]} Qa7 {[%emt 0:00:07]} 33. h3 {[%emt 0:00:05]} Rf8 {[%emt 0:00:02]} 34. b4 {[%emt 0:00:09]} Rf5 {[%emt 0:00:02]} 35. Qe3 {[%emt 0:00:05]} Qxe3 {[%emt 0:00:02]} 0-1

[Event "Catalan University-ch 2024"]
[Site "Barcelona"]
[Date "2024.02.24"]
[Round "4.10"]
[White "Marti Olivella, Gerard"]
[Black "De Lomas Busquets, Alba"]
[Result "0-1"]
[ECO "B23"]
[WhiteElo "1869"]
[BlackElo "1883"]
[Annotator "NA RC"]
[PlyCount "78"]
[EventDate "2024.02.24"]
[EventCountry "ESP"]
[SourceTitle "playchess.com"]
[Source "ChessBase"]
[SourceQuality "1"]
[TimeControl "600+2"]

1. e4 {[%emt 0:00:03]} c5 {[%emt 0:00:01]} 2. Nc3 {[%emt 0:00:01]} Nc6 {[%emt 0:00:02]} 3. f4 {[%emt 0:00:02]} e6 {[%emt 0:00:03]} 4. Nf3 {[%emt 0:00:02]} d5 {[%emt 0:00:03]} 5. Bb5 {[%emt 0:00:18]} a6 {[%emt 0:00:08]} 6. Bxc6+ {[%emt 0:00:05]} bxc6 {[%emt 0:00:02]} 7. d3 {[%emt 0:00:06]} a5 {[%emt 0:00:17]} 8. O-O {[%emt 0:00:07]} Ba6 {[%emt 0:00:10]} 9. Kh1 {[%emt 0:00:17]} c4 {[%emt 0:00:08]} 10. d4 {[%emt 0:01:03]} Be7 {[%emt 0:00:12]} 11. Qe1 {[%emt 0:00:15]} Nf6 {[%emt 0:00:47]} 12. e5 {[%emt 0:00:02]} Nd7 {[%emt 0:00:02]} 13. Ne2 {[%emt 0:00:52]} c5 {[%emt 0:00:11]} 14. c3 {[%emt 0:00:04]} cxd4 {[%emt 0:00:02]} 15. Nexd4 {[%emt 0:00:02]} Qc7 {[%emt 0:00:35]} 16. Qg3 {[%emt 0:00:22]} g6 {[%emt 0:00:13]} 17. Be3 {[%emt 0:00:22]} Nc5 {[%emt 0:00:06]} 18. f5 {[%emt 0:02:40]} Ne4 {[%emt 0:00:31]} 19. Qg4 {[%emt 0:00:30]} gxf5 {[%emt 0:00:23]} 20. Qg7 {[%emt 0:00:02]} Rf8 {[%emt 0:00:44]} 21. Qxh7 {[%emt 0:00:02]} O-O-O {[%emt 0:00:15]} 22. Rfc1 {[%emt 0:01:12]} Bc5 {[%emt 0:00:07]} 23. Qh4 {[%emt 0:00:14]} Rh8 {[%emt 0:00:15]} 24. Qe1 {[%emt 0:00:02]} Bb7 {[%emt 0:01:09]} 25. Bf4 {[%emt 0:00:05]} Qe7 {[%emt 0:00:18]} 26. b3 {[%emt 0:00:23]} Rdg8 {[%emt 0:00:12]} 27. bxc4 {[%emt 0:00:05]} dxc4 {[%emt 0:00:02]} 28. Qe2 {[%emt 0:00:29]} Bd5 {[%emt 0:00:45]} 29. Rab1 {[%emt 0:00:01]} Rh7 {[%emt 0:00:50]} 30. Qb2 {[%emt 0:00:03]} Qc7 {[%emt 0:00:43]} 31. Qb5 {[%emt 0:00:26]} Rgh8 {[%emt 0:00:16]} 32. Qa6+ {[%emt 0:00:04]} Bb7 {[%emt 0:00:05]} 33. Qxc4 {[%emt 0:00:14]} Nf2+ {[%emt 0:00:14]} 34. Kg1 {[%emt 0:00:06]} Bxf3 {[%emt 0:00:10]} 35. gxf3 {[%emt 0:00:09]} Nh3+ {[%emt 0:00:03]} 36. Kf1 {[%emt 0:00:24]} Nxf4 {[%emt 0:01:10]} 37. Nb5 {[%emt 0:00:00]} Rxh2 {[%emt 0:00:00]} 38. Nxc7 {[%emt 0:00:04]} Rf2+ {[%emt 0:00:04]} 39. Ke1 {[%emt 0:00:00]} Rh1+ {[%emt 0:00:00]} 0-1

[Event "Catalan University-ch 2024"]
[Site "Barcelona"]
[Date "2024.02.24"]
[Round "5.1"]
[White "Travesset Sagre, Jan"]
[Black "Adan Bermudez, Sergio"]
[Result "0-1"]
[ECO "B06"]
[WhiteElo "2193"]
[BlackElo "2299"]
[Annotator "TA"]
[PlyCount "120"]
[EventDate "2024.02.24"]
[EventCountry "ESP"]
[SourceTitle "playchess.com"]
[Source "ChessBase"]
[SourceQuality "1"]
[TimeControl "600+2"]

{[%evp 9,120,28,37,43,62,45,72,58,99,103,120,70,72,38,77,27,73,42,44,38,40,39,90,38,66,52,47,58,88,84,81,69,146,148,145,103,312,327,177,113,97,76,79,81,89,0,51,45,45,45,47,34,42,-39,-30,-22,0,0,0,-14,-12,-19,0,-8,-8,-14,0,0,0,-25,0,-6,0,-18,-7,-35,-14,-56,0,-173,-168,-282,-9,-9,-10,-10,-8,-29,-29,-51,-37,-52,-42,-31,-42,-64,-59,-106,-106,-106,-106,-106,-106,-106,-106,-106,-106,-1490,-935,-12817,-8994,-5909,-5473]} 1. d4 {[%emt 0:00:02]} d6 {[%emt 0:00:03]} 2. Nf3 {[%emt 0:00:13]} g6 {[%emt 0:00:05]} 3. e4 {[%emt 0:00:02]} Bg7 {[%emt 0:00:02]} 4. Bc4 {[%emt 0:00:02]} a6 {[%emt 0:00:01]} 5. a4 {[%emt 0:00:02]} Nc6 {[%emt 0:00:02]} 6. O-O {[%emt 0:00:26]} e6 {[%emt 0:00:02]} 7. c3 {[%emt 0:00:11]} d5 {[%emt 0:00:10]} 8. Bd3 {[%emt 0:00:11] White is better.} Nge7 {[%emt 0:00:16]} 9. e5 {[%emt 0:00:11]} h6 {[%emt 0:00:05]} 10. Be3 {[%emt 0:00:30]} (10. b4 $16) 10... Nf5 $14 {[%emt 0:00:07]} 11. Nbd2 {[%emt 0:00:02]} O-O {[%emt 0:00:14]} 12. Qe2 {[%emt 0:00:18]} (12. a5 $16) 12... Nce7 {[%emt 0:00:15]} (12... a5 $11) 13. h3 {[%emt 0:01:24]} Nxe3 {[%emt 0:00:42]} 14. Qxe3 {[%emt 0:01:14]} Nf5 {[%emt 0:00:10]} 15. Qe2 {[%emt 0:00:06]} Bd7 {[%emt 0:00:10]} (15... a5 $14) 16. g4 {[%emt 0:00:34]} ({Better is} 16. a5 $16) 16... Nh4 {[%emt 0:00:18]} 17. Nxh4 {[%emt 0:00:02]} Qxh4 {[%emt 0:00:03]} 18. Kg2 {[%emt 0:00:07]} f5 {[%emt 0:00:13]} 19. exf6 {[%emt 0:00:14]} Qxf6 {[%emt 0:00:04]} 20. f4 {[%emt 0:00:02]} a5 {[%emt 0:00:57]} (20... Rf7 $14) 21. Nf3 $1 $16 {[%emt 0:00:02]} Be8 {[%emt 0:00:49]} 22. Ne5 {[%emt 0:00:05]} g5 $2 {[%emt 0:00:14]} (22... c5 $16) 23. fxg5 $18 {[%emt 0:03:08]} Qxg5 {[%emt 0:00:01]} 24. Nf3 {[%emt 0:01:03]} (24. h4 $18 Qe7 (24... Qxh4 $2 {loses.} 25. Ng6 $18) 25. Rxf8+ Qxf8 26. Rf1) 24... Qe7 $16 {[%emt 0:00:05]} 25. Rae1 {[%emt 0:00:08][%cal Od3f5]} Bxa4 {[%emt 0:00:13]} 26. Bb1 {[%emt 0:00:26]} (26. Qxe6+ Qxe6 27. Rxe6 Rfe8 $14) 26... Bf6 {[%emt 0:00:46] Dodges Nh4} 27. Qd3 {[%emt 0:00:02]} (27. Qe3 $16) 27... Qg7 {[%emt 0:00:03]} (27... Bd7 $11) 28. Rxe6 $14 {[%emt 0:00:02][%cal Of3h4] Nh4! would now be deadly.} Bd7 {[%emt 0:00:09]} 29. Re3 {[%emt 0:00:08]} Rae8 {[%emt 0:00:02][%cal Od7b5]} 30. Rxe8 {[%emt 0:00:02]} Rxe8 {[%emt 0:00:01]} 31. Re1 {[%emt 0:00:02]} ({White should try} 31. Rf2 $14) 31... Rxe1 $15 {[%emt 0:00:36]} 32. Nxe1 {[%emt 0:00:01]} a4 {[%emt 0:00:04]} (32... h5 {with more complications.} 33. Qf3 hxg4 34. Qxd5+ Kf8) 33. Qf3 {[%emt 0:00:01]} c6 {[%emt 0:00:02]} 34. Bd3 {[%emt 0:00:04]} Bh4 {[%emt 0:00:11]} 35. Nc2 {[%emt 0:00:01]} h5 {[%emt 0:00:15]} 36. Bf5 {[%emt 0:00:01]} hxg4 {[%emt 0:00:04]} 37. hxg4 {[%emt 0:00:00]} Be8 {[%emt 0:00:16]} 38. Ne3 {[%emt 0:00:06]} Qe7 {[%emt 0:00:05] Prevents Be6+} 39. Nf1 {[%emt 0:00:02]} Qe1 {[%emt 0:00:30]} 40. Bd3 {[%emt 0:00:01]} Qe6 {[%emt 0:00:09]} 41. Kh3 {[%emt 0:00:01]} Bg5 {[%emt 0:00:02]} 42. Bf5 {[%emt 0:00:02]} Qe1 {[%emt 0:00:07]} 43. Ng3 {[%emt 0:00:02][%cal Of5h7]} Bf7 {[%emt 0:00:10]} (43... Qe3 $15 44. Qxe3 Bxe3) 44. Ne2 $2 {[%emt 0:00:01]} (44. Bh7+ $11 Kg7 45. Bc2) 44... Qd2 $19 {[%emt 0:00:06]} 45. Bd3 {[%emt 0:00:05]} (45. Bb1 $142) 45... Qe3 $2 {[%emt 0:00:06]} ({Black should play} 45... Qxb2 $19 46. Ng3 Qd2 (46... Qxc3 $2 {perishes.} 47. Bh7+ Kxh7 48. Qxc3 $18)) 46. Qxe3 $11 {[%emt 0:00:01]} Bxe3 {[%emt 0:00:01][%mdl 4096] Endgame. KBB-KBN} 47. Bc2 {[%emt 0:00:00]} b5 {[%emt 0:02:30]} 48. Kg3 Kg7 {[%emt 0:00:00]} 49. Bf5 {[%emt 0:00:02]} Be8 $1 {[%emt 0:00:00] Prevents Bd7.} 50. Kf3 {[%emt 0:00:00]} Bd2 {[%emt 0:00:00]} 51. Bc8 {[%emt 0:00:07]} Kf6 {[%emt 0:00:00]} 52. Kg3 {[%emt 0:00:03]} Ke7 {[%emt 0:00:00]} 53. Kf3 {[%emt 0:00:03]} (53. Bf5 $1 $15 {is more appropriate.}) 53... Bg6 $17 {[%emt 0:00:00]} 54. Bf5 {[%emt 0:00:02]} Bxf5 55. gxf5 {[%emt 0:00:00] KB-KN} Kf6 {[%emt 0:00:00]} 56. Kg4 {[%emt 0:00:01] [#]} Be3 $1 {[%emt 0:00:00] Strongly threatening ...Bd2.} 57. Kf3 {[%emt 0:00:00]} Bh6 {[%emt 0:00:00]} 58. Kg4 {[%emt 0:00:01][%mdl 8192]} (58. Nf4 $17) 58... Bd2 $19 {[%emt 0:00:00] Black is clearly winning.} 59. Nf4 {[%emt 0:00:07]} Bc1 {[%emt 0:00:00]} 60. Nd3 {[%emt 0:00:02] [#]} Bxb2 $1 {[%emt 0:00:00][%mdl 512] A wild game.   Weighted Error Value: White=0.38/Black=0.23 (precise) .  Loses game:     	White=2     	Black=1      Missed win:     	---       	Black=1      Mistake:       	White=8     	Black=5      Inaccurate:     	White=5     	Black=5      OK:         	White=12    	Black=17     Best:        	White=3     	Black=3      Strong:       	White=1     	Black=2} 0-1

[Event "Catalan University-ch 2024"]
[Site "Barcelona"]
[Date "2024.02.24"]
[Round "5.2"]
[White "Castillo Dalmau, Albert"]
[Black "Garcia Escoda, Marc"]
[Result "1-0"]
[ECO "A34"]
[WhiteElo "2313"]
[BlackElo "2074"]
[Annotator "TA"]
[PlyCount "47"]
[EventDate "2024.02.24"]
[EventCountry "ESP"]
[SourceTitle "playchess.com"]
[Source "ChessBase"]
[SourceQuality "1"]
[TimeControl "600+2"]

{[%evp 17,46,0,16,0,42,22,14,19,27,25,32,28,60,68,83,84,83,64,71,65,80,40,101,91,118,83,111,78,99,102,29999]} 1. Nf3 {[%emt 0:00:10]} c5 {[%emt 0:00:01]} 2. c4 {[%emt 0:00:04]} Nf6 {[%emt 0:00:03]} 3. g3 {[%emt 0:00:01]} d5 {[%emt 0:00:00]} 4. cxd5 Nxd5 {[%emt 0:00:01]} 5. Bg2 {[%emt 0:00:06]} Nc6 {[%emt 0:00:01]} 6. O-O {[%emt 0:00:51]} e5 {[%emt 0:00:01]} 7. Nc3 {[%emt 0:00:01]} Nc7 {[%emt 0:00:01]} 8. a3 {[%emt 0:00:01]} f6 {[%emt 0:00:05]} 9. d3 {[%emt 0:00:45]} Be7 {[%emt 0:00:02]} 10. Be3 {[%emt 0:00:08]} Bd7 {[%emt 0:00:28]} 11. Ne4 {[%emt 0:01:24]} b6 {[%emt 0:00:17] [#]} 12. b4 $1 {[%emt 0:00:20] Die Stellung ist ausgeglichen.} cxb4 {[%emt 0:00:24]} 13. axb4 {[%emt 0:00:01]} Nxb4 {[%emt 0:00:47]} 14. d4 {[%emt 0:00:23]} exd4 {[%emt 0:00:09]} 15. Nxd4 {[%emt 0:00:10][%cal Bf3d4,Bd4e6,Be6f4][%mdl 32] Droht Bf4 und aus.} O-O {[%emt 0:00:53]} 16. Qb3+ {[%emt 0:00:08]} Kh8 {[%emt 0:00:03]} 17. Nc3 {[%emt 0:00:02][%cal Of1d1] Verhindert Ncd5. Und Rfd1! würde nun gewinnen. Weiß steht deutlich aktiver.} a5 $1 {[%emt 0:01:24]} 18. Bxa8 {[%emt 0:00:13]} Qxa8 {[%emt 0:00:01]} 19. Rfc1 {[%emt 0:00:14]} Nca6 {[%emt 0:00:15]} (19... Ncd5 $14) 20. Ne6 $16 {[%emt 0:00:19]} Rb8 {[%emt 0:00:26]} 21. Nf4 {[%emt 0:00:09] Qf7 wäre nun fies.} Bc5 {[%emt 0:00:39]} 22. Bxc5 {[%emt 0:00:33]} Nxc5 {[%emt 0:00:01]} 23. Qf7 {[%emt 0:00:34]} Be8 $2 {[%emt 0:00:03][%mdl 8192] [#]} (23... Rb7 $16) 24. Qf8# {[%emt 0:04:13] Nach der Eröffnung ein Spiel auf ein Tor.   Gewichteter Fehlerwert: Weiß=0.12 (sehr präzise) /Schwarz=0.61.  Verlustzug:     	---       	Schwarz=1     Fehler:       	---       	Schwarz=1     Ungenau:       	Weiß=1     	Schwarz=3     OK:         	Weiß=6     	Schwarz=3     Bester:       	Weiß=1     	Schwarz=1     Stark:        	---       	Schwarz=1} 1-0

[Event "Catalan University-ch 2024"]
[Site "Barcelona"]
[Date "2024.02.24"]
[Round "5.3"]
[White "Gomez Navais, Marcal"]
[Black "Alfonso Pellisa, Aaron"]
[Result "0-1"]
[ECO "C45"]
[WhiteElo "2081"]
[BlackElo "2090"]
[Annotator "NA RC"]
[PlyCount "104"]
[EventDate "2024.02.24"]
[EventCountry "ESP"]
[SourceTitle "playchess.com"]
[Source "ChessBase"]
[SourceQuality "1"]
[TimeControl "600+2"]

1. e4 {[%emt 0:00:02]} e5 {[%emt 0:00:02]} 2. Nf3 {[%emt 0:00:01]} Nc6 {[%emt 0:00:01]} 3. d4 exd4 4. Nxd4 {[%emt 0:00:02]} Nf6 {[%emt 0:10:07]} 5. Nxc6 {[%emt 0:00:02]} bxc6 {[%emt 0:00:00]} 6. e5 Qe7 {[%emt 0:00:04]} 7. Qe2 {[%emt 0:10:09]} Nd5 {[%emt 0:00:00]} 8. h4 {[%emt 0:00:00]} d6 {[%emt 0:00:00]} 9. c4 {[%emt 0:00:00]} Nb6 {[%emt 0:00:00]} 10. exd6 {[%emt 0:00:00]} Qxe2+ {[%emt 0:00:00]} 11. Bxe2 {[%emt 0:00:00]} cxd6 {[%emt 0:00:00]} 12. b3 {[%emt 0:00:00]} d5 {[%emt 0:00:00]} 13. cxd5 {[%emt 0:00:00]} Bb4+ {[%emt 0:00:00]} 14. Bd2 {[%emt 0:00:00]} Bxd2+ {[%emt 0:00:00]} 15. Nxd2 {[%emt 0:00:00]} cxd5 {[%emt 0:00:00]} 16. Nf3 {[%emt 0:00:00]} O-O {[%emt 0:00:00]} 17. Nd4 {[%emt 0:00:00]} Re8 {[%emt 0:00:00]} 18. O-O-O {[%emt 0:00:00]} Bd7 {[%emt 0:00:00]} 19. Bf3 {[%emt 0:00:00]} a5 {[%emt 0:00:00]} 20. a4 {[%emt 0:00:00]} Rec8+ {[%emt 0:00:00]} 21. Kb2 {[%emt 0:00:00]} Rab8 {[%emt 0:00:00]} 22. Ka2 {[%emt 0:00:00]} Bxa4 {[%emt 0:00:00]} 23. bxa4 {[%emt 0:00:00]} Nxa4 {[%emt 0:00:00]} 24. Rc1 {[%emt 0:00:00]} Nc3+ {[%emt 0:00:00]} 25. Ka1 {[%emt 0:00:00]} Rc4 {[%emt 0:00:00]} 26. Bd1 {[%emt 0:00:00]} a4 {[%emt 0:00:00]} 27. Nc2 {[%emt 0:00:00]} Rb3 {[%emt 0:00:00]} 28. Re1 {[%emt 0:00:00]} g6 {[%emt 0:00:00]} 29. g3 {[%emt 0:00:00]} d4 {[%emt 0:00:00]} 30. Be2 {[%emt 0:00:00]} Nxe2 {[%emt 0:00:00]} 31. Rxe2 {[%emt 0:00:00]} d3 {[%emt 0:00:00]} 32. Rd2 {[%emt 0:00:06]} Rcc3 {[%emt 0:00:00]} 33. Ka2 {[%emt 0:00:09]} dxc2 {[%emt 0:00:00]} 34. Rcxc2 {[%emt 0:00:10]} Ra3+ {[%emt 0:00:00]} 35. Kb1 {[%emt 0:00:01]} Rcb3+ {[%emt 0:00:00]} 36. Rb2 {[%emt 0:00:01]} Rxb2+ {[%emt 0:00:00]} 37. Rxb2 {[%emt 0:00:01]} Rf3 {[%emt 0:00:00]} 38. Ra2 {[%emt 0:00:06]} a3 {[%emt 0:00:00]} 39. Kc1 {[%emt 0:00:01]} f6 {[%emt 0:00:00]} 40. Kd1 {[%emt 0:00:03]} g5 {[%emt 0:00:00]} 41. hxg5 {[%emt 0:00:03]} fxg5 {[%emt 0:00:00]} 42. Ke2 {[%emt 0:00:09]} Rb3 {[%emt 0:00:00]} 43. Kf1 {[%emt 0:00:01]} Kf7 {[%emt 0:00:00]} 44. Kg2 {[%emt 0:00:04]} g4 {[%emt 0:00:00]} 45. Rc2 {[%emt 0:00:10]} Rb2 {[%emt 0:00:00]} 46. Rc7+ {[%emt 0:00:01]} Kg6 {[%emt 0:00:00]} 47. Ra7 {[%emt 0:00:08]} a2 {[%emt 0:00:00]} 48. Ra4 {[%emt 0:00:03]} Kf5 {[%emt 0:00:00]} 49. Ra5+ {[%emt 0:00:03]} Ke4 {[%emt 0:00:00]} 50. Ra4+ {[%emt 0:00:02]} Kd3 {[%emt 0:00:00]} 51. Ra3+ {[%emt 0:00:02]} Kc2 {[%emt 0:00:00]} 52. f4 {[%emt 0:00:02]} Kb1+ {[%emt 0:00:00]} 0-1

[Event "Catalan University-ch 2024"]
[Site "Barcelona"]
[Date "2024.02.24"]
[Round "5.4"]
[White "Martinez Gamiz, Marc"]
[Black "Roca Planas, Edgar"]
[Result "0-1"]
[ECO "B12"]
[WhiteElo "1871"]
[BlackElo "2248"]
[Annotator "RC"]
[PlyCount "64"]
[EventDate "2024.02.24"]
[EventCountry "ESP"]
[SourceTitle "playchess.com"]
[Source "ChessBase"]
[SourceQuality "1"]
[TimeControl "600+2"]

1. e4 {[%emt 0:00:02]} c6 {[%emt 0:00:04]} 2. d4 {[%emt 0:00:01]} d5 {[%emt 0:00:02]} 3. e5 {[%emt 0:00:04]} Bf5 {[%emt 0:00:02]} 4. c3 {[%emt 0:00:01]} e6 {[%emt 0:00:03]} 5. Nf3 {[%emt 0:00:02]} Nd7 {[%emt 0:00:07]} 6. Be2 {[%emt 0:00:25]} a5 {[%emt 0:00:07]} 7. O-O {[%emt 0:00:05]} a4 {[%emt 0:00:03]} 8. Be3 {[%emt 0:00:18]} f6 {[%emt 0:00:32]} 9. exf6 {[%emt 0:00:15]} Qxf6 {[%emt 0:00:06]} 10. Re1 {[%emt 0:00:30]} Bd6 {[%emt 0:00:03]} 11. Bd3 {[%emt 0:00:37]} Bg4 {[%emt 0:00:27]} 12. Nbd2 {[%emt 0:00:02]} Ne7 {[%emt 0:00:10]} 13. Qc2 {[%emt 0:00:05]} h6 {[%emt 0:01:02]} 14. h3 {[%emt 0:00:28]} Bh5 {[%emt 0:00:51]} 15. b3 {[%emt 0:01:41]} a3 {[%emt 0:00:48]} 16. g4 {[%emt 0:01:10]} Bg6 {[%emt 0:00:12]} 17. Bxg6+ {[%emt 0:00:16]} Nxg6 {[%emt 0:00:15]} 18. c4 {[%emt 0:00:21]} O-O {[%emt 0:01:06]} 19. Kf1 {[%emt 0:01:10]} Nf4 {[%emt 0:00:54]} 20. Bxf4 {[%emt 0:00:17]} Bxf4 {[%emt 0:00:03]} 21. Re2 {[%emt 0:00:16]} Bxd2 {[%emt 0:00:15]} 22. Nxd2 {[%emt 0:00:02]} Qxd4 {[%emt 0:00:05]} 23. Rd1 {[%emt 0:00:12]} Qb2 {[%emt 0:00:19]} 24. Nb1 {[%emt 0:00:13]} Qxc2 {[%emt 0:00:13]} 25. Rxc2 {[%emt 0:00:02]} Rf3 {[%emt 0:00:16]} 26. Kg2 {[%emt 0:00:03]} Raf8 {[%emt 0:00:02]} 27. cxd5 {[%emt 0:00:20]} exd5 {[%emt 0:00:01]} 28. Nxa3 {[%emt 0:00:13]} Ne5 {[%emt 0:00:14]} 29. Re2 {[%emt 0:00:49]} Ng6 {[%emt 0:00:04]} 30. Rdd2 {[%emt 0:00:24]} Rc3 {[%emt 0:00:03]} 31. Kh2 {[%emt 0:00:11]} Rff3 {[%emt 0:00:16]} 32. Nb1 {[%emt 0:00:11]} Rxh3+ {[%emt 0:00:03]} 0-1

[Event "Catalan University-ch 2024"]
[Site "Barcelona"]
[Date "2024.02.24"]
[Round "5.5"]
[White "Gonzalez Diaz, Penelope"]
[Black "Sole Pijuan, Ferran"]
[Result "0-1"]
[ECO "D02"]
[WhiteElo "1893"]
[BlackElo "2136"]
[Annotator "RC"]
[PlyCount "122"]
[EventDate "2024.02.24"]
[EventCountry "ESP"]
[SourceTitle "playchess.com"]
[Source "ChessBase"]
[SourceQuality "1"]
[TimeControl "600+2"]

1. d4 {[%emt 0:00:02]} d5 {[%emt 0:00:03]} 2. Nf3 {[%emt 0:00:01]} Nf6 {[%emt 0:00:01]} 3. Bf4 {[%emt 0:00:01]} e6 {[%emt 0:00:01]} 4. e3 {[%emt 0:00:02]} Bd6 {[%emt 0:00:02]} 5. Ne5 {[%emt 0:00:01]} O-O {[%emt 0:00:07]} 6. Bd3 {[%emt 0:00:12]} c5 {[%emt 0:00:01]} 7. c3 {[%emt 0:00:07]} Qc7 {[%emt 0:00:03]} 8. Bg3 {[%emt 0:00:10]} Nc6 {[%emt 0:00:27]} 9. f4 {[%emt 0:00:04]} Ne7 {[%emt 0:00:06]} 10. Nd2 {[%emt 0:00:17]} Nf5 {[%emt 0:00:32]} 11. Qf3 {[%emt 0:00:46]} Be7 {[%emt 0:00:34]} 12. O-O {[%emt 0:00:15]} b6 {[%emt 0:00:40]} 13. h3 {[%emt 0:00:54]} Bb7 {[%emt 0:00:03]} 14. Bh2 {[%emt 0:00:04]} Nd6 {[%emt 0:00:10]} 15. f5 {[%emt 0:00:24]} Nfe4 {[%emt 0:00:07]} 16. Bxe4 {[%emt 0:00:14]} dxe4 {[%emt 0:00:05]} 17. Qh5 {[%emt 0:02:04]} exf5 {[%emt 0:00:20]} 18. Rac1 {[%emt 0:00:33]} Qd8 {[%emt 0:00:26]} 19. Ndc4 {[%emt 0:00:45]} Nxc4 {[%emt 0:00:20]} 20. Nxc4 {[%emt 0:00:05]} g6 {[%emt 0:00:09]} 21. Qe2 {[%emt 0:00:09]} Ba6 {[%emt 0:00:06]} 22. Rfd1 {[%emt 0:00:15]} cxd4 {[%emt 0:00:11]} 23. cxd4 {[%emt 0:00:11]} Rc8 {[%emt 0:00:11]} 24. b3 {[%emt 0:00:03]} Bg5 {[%emt 0:02:22]} 25. Qf2 {[%emt 0:00:27]} Qd5 {[%emt 0:00:20]} 26. Nb2 {[%emt 0:01:16]} Rc6 {[%emt 0:00:12]} 27. Bf4 {[%emt 0:00:09]} Bxf4 {[%emt 0:00:08]} 28. Qxf4 {[%emt 0:00:03]} Rfc8 {[%emt 0:00:01]} 29. Rxc6 {[%emt 0:00:03]} Qxc6 {[%emt 0:00:19]} 30. Qf2 {[%emt 0:00:12]} Qc2 {[%emt 0:00:12]} 31. Rd2 {[%emt 0:00:21]} Qb1+ {[%emt 0:00:22]} 32. Kh2 {[%emt 0:00:30]} Qxa2 {[%emt 0:00:02]} 33. b4 {[%emt 0:00:08]} Qd5 {[%emt 0:00:08]} 34. Qf4 {[%emt 0:00:07]} Kg7 {[%emt 0:00:11]} 35. Kg3 {[%emt 0:00:01]} Rc6 {[%emt 0:00:01]} 36. h4 {[%emt 0:00:05]} Qd6 {[%emt 0:00:03]} 37. Qxd6 {[%emt 0:00:05]} Rxd6 {[%emt 0:00:00]} 38. Rc2 {[%emt 0:00:01]} Bb5 {[%emt 0:00:15]} 39. Rc7 {[%emt 0:00:03]} Rd7 {[%emt 0:00:01]} 40. Rc3 {[%emt 0:00:03]} Kf6 {[%emt 0:00:05]} 41. Kf4 {[%emt 0:00:01]} h6 {[%emt 0:00:01]} 42. Nd1 {[%emt 0:00:05]} g5+ {[%emt 0:00:01]} 43. hxg5+ {[%emt 0:00:00]} hxg5+ {[%emt 0:01:59]} 44. Kg3 {[%emt 0:00:02]} f4+ {[%emt 0:00:00]} 45. exf4 {[%emt 0:00:01]} Rxd4 {[%emt 0:00:00]} 46. fxg5+ {[%emt 0:00:01]} Kxg5 {[%emt 0:00:00]} 47. Ne3 {[%emt 0:00:02]} f5 {[%emt 0:00:00]} 48. Nf1 {[%emt 0:00:07]} Bxf1 {[%emt 0:00:00]} 49. Kf2 {[%emt 0:00:03]} Bc4 {[%emt 0:00:00]} 50. Re3 {[%emt 0:00:01]} b5 {[%emt 0:00:00]} 51. g3 {[%emt 0:00:08]} Rd2+ {[%emt 0:00:00]} 52. Ke1 {[%emt 0:00:00]} Rd3 {[%emt 0:00:00]} 53. Re2 {[%emt 0:00:00]} Rxg3 {[%emt 0:00:00]} 54. Rd2 {[%emt 0:00:00]} Rd3 {[%emt 0:00:00]} 55. Rg2+ {[%emt 0:00:00]} Kf4 {[%emt 0:00:00]} 56. Rg7 {[%emt 0:00:01]} Ra3 {[%emt 0:00:00]} 57. Rh7 {[%emt 0:00:03]} Ra2 {[%emt 0:00:00]} 58. Rh3 {[%emt 0:00:03]} Ke5 {[%emt 0:00:00]} 59. Rh5 {[%emt 0:00:02]} a6 {[%emt 0:00:00]} 60. Rg5 {[%emt 0:00:02]} Ra4 {[%emt 0:00:00]} 61. Rg6 {[%emt 0:00:05]} Be6 {[%emt 0:00:00]} 0-1